Cogmind - Beta 13 @@@ ROGUE MODE // 2024.04.01 @ 05:36:25 Player: Aklangi Result: Destroyed by II-DK6(R) with Subdweller Machine Gun Performance ------------- Evolutions (0) 0 Regions Visited (3) 600 Robots Destroyed (28) 140 Value Destroyed (459) 459 Prototype IDs (0) 0 Alien Tech Used (0) 0 Bonus (0) 0 TOTAL SCORE: 1199 Bonus ------- None Cogmind --------- Core Integrity 0/250 Matter 169/300 Energy 275/275 System Corruption 0% Temperature Cool (0) Movement Treading (152) Location -10/Subcaves Parts ------- > --- POWER (1) -------- Deuterium Engine > --- PROPULSION (2) --- Improved Treads Advanced Treads > --- UTILITY (2) ------ Large Storage Unit Hacking Suite > --- WEAPON (2) ------- Shotgun Grenade Launcher > --- INVENTORY (15) --- Light Ion Engine Improved Treads Medium Storage Unit Scrap Shield Hacking Suite Pulse Rifle Light Assault Rifle Mining Laser Peak State ------------ > --- POWER ------------ Deuterium Engine > --- PROPULSION ------- Improved Treads Advanced Treads > --- UTILITY ---------- Large Storage Unit Hacking Suite > --- WEAPON ----------- Pulse Rifle Shotgun > --- INVENTORY -------- Light Ion Engine Improved Treads Medium Storage Unit Hacking Suite Light Assault Rifle Grenade Launcher Mining Laser [Rating: 18] Favorites ----------- Power Light Ion Engine Engine Light Ion Engine Propulsion Improved Treads Treads Improved Treads Utility Hacking Suite Storage Large Storage Unit Processor Signal Interpreter Hackware Hacking Suite Weapon Shotgun Energy Gun Pulse Rifle Ballistic Gun Shotgun Launcher Grenade Launcher Special Weapon Mining Laser Build | -11 -10 -10 -10 ------- Run | Yrd Mat Min Sub Slots Evolved . | . . . . Power . | . . . . Propulsion . | . . . . Utility . | . . . . Weapon . | . . . . Parts Attached 25 | 6 7 7 5 Power 2 | 1 . 1 . Engine 2 | 1 . 1 . Core . | . . . . Reactor . | . . . . Propulsion 6 | 2 2 1 1 Treads 6 | 2 2 1 1 Leg . | . . . . Wheel . | . . . . Hover . | . . . . Flight . | . . . . Utility 6 | 1 4 1 . Device . | . . . . Storage 4 | 1 2 1 . Processor 1 | . 1 . . Hackware 1 | . 1 . . Protection . | . . . . Artifact . | . . . . Weapon 11 | 2 1 4 4 Energy Gun 1 | . . 1 . Energy Cannon . | . . . . Ballistic Gun 6 | 2 1 1 2 Ballistic Cannon . | . . . . Launcher 3 | . . 1 2 Special Weapon 1 | . . 1 . Impact Weapon . | . . . . Slashing Weapon . | . . . . Piercing Weapon . | . . . . Special Melee Weapon . | . . . . Unidentified Prototypes . | . . . . Parts Lost . | . . . . Power . | . . . . Propulsion . | . . . . Utility . | . . . . Weapon . | . . . . Highest Loss Streak . | . . . . To Critical Strikes . | . . . . Average Slot Usage (%) 98 | . 95 100 100 Engine 14 | . 14 14 14 Treads 28 | . 28 28 28 Storage 14 | . 14 14 14 Hackware 12 | . 9 14 14 Energy Gun 4 | . . 7 12 Ballistic Gun 19 | . 28 13 12 Launcher 3 | . . 7 1 Naked Turns . | . . . . Heaviest Build 35 | 11 18 35 35 Greatest Support 46 | 40 46 46 45 Greatest Overweight (x) . | . . . . Average Overweight (x) . | . . . . Largest Inventory Capacity 15 | 8 10 15 15 Average Capacity 11 | 6 8 14 15 Most Carried 11 | 1 8 11 10 Average Carried 7 | . 7 8 9 Final Capacity 15 | 8 10 15 15 Final Carried 11 | 1 6 11 9 Class Distribution -------------------- 100% | Mutant Dominant Class ---------------- Mutant | -10/Materials Mutant | -10/Mines Mutant | -10/Subcaves Resources | -11 -10 -10 -10 ----------- Run | Yrd Mat Min Sub Matter Collected 607 | 229 179 179 20 Remotely . | . . . . Salvage Created 480 | . 211 205 64 Parts 57 | . 24 27 6 Haulers Intercepted 1 | . 1 . . Recyclers Shooed 3 | . 2 1 . Parts Field Recycled . | . . . . Retrieved Matter . | . . . . Parts Self-Destructed 10 | . . . 10 Prevented . | . . . . Kills | -11 -10 -10 -10 ------- Run | Yrd Mat Min Sub Combat Hostiles Destroyed 24 | . 5 14 5 Guns 16 | . 5 11 . AOE 8 | . . 3 5 Classes Destroyed 6 | . 5 . 1 Hauler 1 | . 1 . . Operator 1 | . 1 . . Watcher 2 | . 2 . . Swarmer 18 | . 3 12 3 Grunt 4 | . 2 2 . Subdweller 2 | . . . 2 Best Kill Streak 6 | . 5 6 3 Combat Bots Only 6 | . 3 6 3 Max Kills in Single Turn 3 | . 2 2 3 Gunslinging . | . . . . Exploded 3 | . . 2 3 Melee . | . . . . Uniques/NPCs Destroyed . | . . . . Combat | -11 -10 -10 -10 -------- Run | Yrd Mat Min Sub Hostile Shots Fired 80 | . 14 52 14 Missed 15 | . 2 11 2 Damage Taken 764 | . 127 392 245 Core 257 | . 19 152 86 Absorbed by Shields . | . . . . Core Remaining (%) 100 | 100 . . . Volleys Fired 53 | . 20 29 4 Largest 2 | . 2 2 2 Hottest 100 | . 43 100 93 Shots Fired 103 | . 40 55 8 Gun 94 | . 40 49 5 Cannon . | . . . . Launcher 6 | . . 3 3 Special 3 | . . 3 . Kinetic 90 | . 40 47 3 Thermal 7 | . . 5 2 Explosive 6 | . . 3 3 Electromagnetic . | . . . . Robot Hit Streak 9 | . 3 7 9 Robot Miss Streak 6 | . 4 6 2 Penetration Max . | . . . . Secondary Targets 1 | . 1 . . Max Gunslinging Chain 1 | . 1 . . Shots Hit Robots 60 | . 22 32 6 Core Hits 40 | . 15 20 5 Critical Kills . | . . . . Critical Parts Destroyed 1 | . . 1 . Critical Strikes 1 | . . 1 . Destroy 1 | . . 1 . Melee Attacks . | . . . . Impact . | . . . . Slashing . | . . . . Piercing . | . . . . Sneak Attacks . | . . . . Combat Hostiles . | . . . . Follow-up Attacks . | . . . . Damage Inflicted 1342 | . 334 505 503 Guns 706 | . 316 345 45 Cannons . | . . . . Explosions 609 | . . 151 458 Melee . | . . . . Ramming 27 | . 18 9 . Kinetic 706 | . 316 345 45 Thermal . | . . . . Explosive 609 | . . 151 458 Electromagnetic . | . . . . Impact . | . . . . Slashing . | . . . . Piercing . | . . . . Highest Corruption . | . . . . Average Corruption . | . . . . Corruption Purged . | . . . . Corruption Blocked . | . . . . Overload Shots . | . . . . Overflow Damage 50 | . . 40 10 Projectiles . | . . . . Explosions 50 | . . 40 10 Melee . | . . . . Knockbacks 2 | . 1 1 . Impact 2 | . 1 1 . Kinetic . | . . . . Secondary . | . . . . Self-Inflicted Damage 20 | . . 20 . Shots 1 | . . 1 . Rammed 9 | . 6 3 . Targets Rammed 9 | . 6 3 . Kicked . | . . . . Crushed . | . . . . Highest Temperature 72 | . 12 72 . Average Temperature 12 | . 7 13 . Received Heat Transfer 198 | . 54 87 57 Siege Activations . | . . . . Robots Corrupted . | . . . . Combat Hostiles . | . . . . Parts Fried . | . . . . Impact Corruptions . | . . . . Robots Melted . | . . . . Combat Hostiles . | . . . . Parts Melted 1 | . . . 1 Heat Transferred . | . . . . Parts Sabotaged . | . . . . Parts Stolen . | . . . . Parts Stripped . | . . . . Power Chain Reactions . | . . . . Alert | -11 -10 -10 -10 ------- Run | Yrd Mat Min Sub Peak Influence 386 | . 176 386 . Initial . | . . . . Average 140 | . 53 227 . Maximum Alert Level 1 | . . 1 . Low Security (%) 72 | 100 100 48 . Level 1 27 | . . 51 . Level 2 . | . . . . Level 3 . | . . . . Level 4 . | . . . . Level 5 . | . . . . High Security . | . . . . Max Security . | . . . . Squads Dispatched 2 | . 1 1 . Investigation 1 | . . 1 . Extermination . | . . . . Reinforcement 1 | . 1 . . Assault . | . . . . Garrison . | . . . . Intercept . | . . . . Searches Triggered . | . . . . Construction Impeded . | . . . . Haulers Reinforced . | . . . . Active Scanning Responses . | . . . . Cargo Convoy Interrupts . | . . . . Stealth | -11 -10 -10 -10 --------- Run | Yrd Mat Min Sub Distress Signals 2 | . 2 . . Communications Jammed . | . . . . Distress Signals . | . . . . Times Spotted 33 | . 10 13 10 Peak Tracking Total 6 | . 3 5 6 Tactical Retreats 1 | . . 1 . Traps | -11 -10 -10 -10 ------- Run | Yrd Mat Min Sub Traps Triggered . | . . . . Indirectly . | . . . . Trap Hack Attempts . | . . . . Triggered . | . . . . Disarmed . | . . . . Reprogrammed . | . . . . Reused . | . . . . Traps Extracted . | . . . . Installed . | . . . . Triggered . | . . . . Machines | -11 -10 -10 -10 ---------- Run | Yrd Mat Min Sub Machines Disabled . | . . . . Max in Single Turn . | . . . . Machines Repaired . | . . . . Machines Dismantled . | . . . . Machines Sabotaged . | . . . . Overloaded Fab Kills . | . . . . Hacking | -11 -10 -10 -10 --------- Run | Yrd Mat Min Sub Machines Accessed 3 | . 2 1 . Terminals 2 | . 2 . . Fabricators . | . . . . Repair Stations . | . . . . Recycling Units . | . . . . Scanalyzers . | . . . . Garrison Access . | . . . . Total Hacks 6 | . 5 1 . Successful 1 | . . 1 . Failed 5 | . 5 . . Catastrophic . | . . . . Database Lockouts . | . . . . Manual . | . . . . Terminals 5 | . 5 . . Fabricators . | . . . . Repair Stations . | . . . . Recycling Units . | . . . . Scanalyzers . | . . . . Garrison Access . | . . . . Terminal Hacks 1 | . . 1 . Open Door 1 | . . 1 . Fabricator Hacks . | . . . . Repair Station Hacks . | . . . . Recycling Unit Hacks . | . . . . Scanalyzer . | . . . . Garrison Access Hacks . | . . . . Unauthorized Hacks . | . . . . Terminals . | . . . . Fabricators . | . . . . Repair Stations . | . . . . Recycling Units . | . . . . Scanalyzers . | . . . . Garrison Access . | . . . . Data Cores Recovered 1 | . 1 . . Used 1 | . 1 . . Hacking Detections 2 | . 2 . . Full Trace Events . | . . . . Feedback Events . | . . . . Feedback Blocked . | . . . . Robot Schematics Acquired . | . . . . Robots Built . | . . . . Authchips . | . . . . Time . | . . . . Total Robot Build Rating . | . . . . Part Schematics Acquired . | . . . . Parts Built . | . . . . Authchips . | . . . . Time . | . . . . Total Part Build Rating . | . . . . Parts Repaired . | . . . . Time . | . . . . Parts Recycled . | . . . . Recycled Matter . | . . . . Retrieved Matter . | . . . . Retrieved Components . | . . . . Parts Scanalyzed . | . . . . Part Schematics Acquired . | . . . . Parts Damaged . | . . . . Bothacking | -11 -10 -10 -10 ------------ Run | Yrd Mat Min Sub Used RIF Installer . | . . . . Robots Hacked . | . . . . Non-combat . | . . . . Combat . | . . . . Robot Hacks Applied . | . . . . Relay Couplers Released . | . . . . Fabnet Peak Effective % . | . . . . Robots Rewired . | . . . . Allies Hacked . | . . . . Hacks Repelled . | . . . . Allies | -11 -10 -10 -10 -------- Run | Yrd Mat Min Sub Total Allies 1 | . . 1 . Largest Group 1 | . . 1 1 Highest-Rated Group 31 | . . 31 31 Highest-Rated Ally 31 | . . 31 31 Total Orders . | . . . . Ally Attacks 3 | . . . 3 Total Damage . | . . . . Kills . | . . . . Allies Corrupted . | . . . . Allies Melted . | . . . . Intel | -11 -10 -10 -10 ------- Run | Yrd Mat Min Sub Robot Analysis Total . | . . . . Derelict Logs Recovered 2 | . . 1 1 Drone Launches . | . . . . Drone Recoveries . | . . . . Exploration | -11 -10 -10 -10 ------------- Run | Yrd Mat Min Sub Turns Passed 1215 | 74 451 574 116 Spaces Moved 632 | 44 224 302 62 Core 5 | 5 . . . Treads 627 | 39 224 302 62 Legs . | . . . . Wheels . | . . . . Hover . | . . . . Flight . | . . . . Fastest Speed 50 | 50 160 152 152 Average Speed 155 | 147 160 154 152 Slowest Speed 160 | 160 160 160 152 Overloaded Moves . | . . . . Propulsion Burnouts . | . . . . Robots Hopped . | . . . . Cave-ins Triggered . | . . . . Exploration Rate (%) 32 | 4 45 75 4 Regions Visited 3 Branch Regions 2 Pre-discovered Areas . | . . . . Known Exits Taken 1 | . 1 . . Unknown Exits Taken 2 | 1 . 1 . Scrap Searched 1 | . . 1 . Spaces Dug . | . . . . Terrain Destroyed 40 | . . 26 14 Melee . | . . . . Projectile . | . . . . AOE 40 | . . 26 14 Terrain Rammed . | . . . . Walls Destroyed . | . . . . Machines Disabled . | . . . . Actions | -11 -10 -10 -10 --------- Run | Yrd Mat Min Sub Total 748 | 50 276 346 76 Wait 2 | . 1 1 . Move 629 | 43 223 301 62 Hop . | . . . . Pick Up 16 | 1 11 3 1 Fast Attach 7 | 6 1 . . Attach 1 | . 1 . . Detach . | . . . . Swap 17 | . 5 7 5 Drop 14 | . 8 2 4 Fire 53 | . 20 29 4 Melee . | . . . . Ram . | . . . . Kick . | . . . . Crush 9 | . 6 3 . Escape Stasis . | . . . . Rewire . | . . . . Trap . | . . . . Miscellaneous . | . . . . Route ------- -11/Scrapyard -10/Materials (discovered 3 exits: [*Mat] / *Min x2) -10/Mines (discovered 2 exits: [*Mat] / [*Sub]) -10/Subcaves History --------- Turn | Location | Event 3 | -11/Scrapyard | Discovered new exit (range 15) 75 | -11/Scrapyard | Entered Materials 270 | -10/Materials | Discovered new exit (range 16) 301 | -10/Materials | Build established: Mutant 328 | -10/Materials | Discovered new exit (range 9) 462 | -10/Materials | Discovered new exit (range 11) 484 | -10/Materials | Identified exit to Mines 526 | -10/Materials | Entered Mines 680 | -10/Mines | Learned Materials stockpile data 691 | -10/Mines | Discovered new exit (range 9) 727 | -10/Mines | Core integrity fell below 50% 761 | -10/Mines | Met a Derelict shopkeep closing up shop 1030 | -10/Mines | Received a Mining Laser from a helpful Derelict 1097 | -10/Mines | Discovered new exit (range 3) 1100 | -10/Mines | Entered Subcaves 1100 | -10/Subcaves | Accompanied by 1 ally 1109 | -10/Subcaves | Learned Materials trap positions 1164 | -10/Subcaves | Ambushed by swarm of Subdwellers 1200 | -10/Subcaves | Core integrity fell below 20% 1216 | -10/Subcaves | Destroyed by II-DK6(R) with Subdweller Machine Gun Last Messages --------------- 01131_ Lgt. Assault Rifle fries itself beyond repair. 01136_ Flight Unit fries itself beyond repair. 01140_ Acquired 3 matter. 01141_ Acquired 6 matter. 01143_ Acquired 11 matter. 01144_ Flight Unit fries itself beyond repair. 01164_ GE-JCT(h): "The Subs are coming!" 01171_ SQ-EHW(g): "Sorry we're late! Had another grouchy Sub to deal with. Who's the new fellow?" 01193_ WX-LJ4(g) suffers critical hit (Destroy). 01193_ WX-LJ4(g) destroyed. 01196_ HV Slug penetrates Earth. 01196_ HV Slug penetrates 5S-9TA(R). 01197_ CF-YOC(g) destroyed. 01200_ SQ-EHW(g) destroyed. 01205_ XS-8G2(g) destroyed. 01212_ PT-SJD(R) destroyed. 01214_ Disposable Heat Sink melted. 01214_ 90-LIW(R) destroyed. 01214_ 6Z-603(R) destroyed. Map ----- +----------------------------------------------------+ | ?????????????????????????????????????????????????? | | ?????????????????????????????????????????????????? | | ?????????????????????????????????????????????????? | | ?????????????????????????????????????????????????? | | ?????????????????????????????????????????????????? | | ?????????????????????????????????????????????????? | | ?????????????????????????????????????????????????? | | ?????????????????????????????????????????????????? | | ?????????????????????????????????????????????????? | | ?????????????????????????????????????????????????? | | ?????????????????????????????????????????????????? | | ?????????????????????????????????????????????????? | | ?????????????????????????????????????????????????? | | ?????????????????????????????????????????????????? | | ?????????????????????????????????????? ??????????? | | ????????????????????????????????????"" ??????????? | | ???????????????????????????????????? ???????????? | | ???????????????????????????????????" ????????????? | | ??????????????????????????????????" #????????????? | | ?????????????????????????????????? ?????????????? | | ????????????????????????????????? " ????????????? | | ????????????????????????????????#*""?????????????? | | ?????????????####????????????###%" ?????????????? | | ????????????## ##?######### # ="" ???????????? | | ???????????## ### ## #???????????????? | | ???????????# @ *%&R <$<#?????????????? | | ???????????# &%& <<$